Workbook

Sheet Feuil1
B1: Attention : suivre impérativement les cellules accessibles afin d'y saisir les données nécessaires.
B3: 1ere Période du : | C3: 2019-11-19 | D3: Au | E3: 2019-12-31
B4: 2ème Période du : | C4: 2020-01-01 | D4: =IF(C4<>"",D3,"") -> Au | E4: 2020-03-31
B5: Electricité
B6: Point de mesure | D6: CH1006601234500000000000000008028
B7: Quantités consommées | F7: Relevé du
C8: Elément | D8: Date du début | E8: Date de fin | F8: Relevé du Départ | G8: Relevé de Fin | H8: Coefficient | I8: Nb de Mois | J8: Quantité Kwh | L8: Nb de jours
C9: Tarif Consommation (1) | D9: 2019-11-19 | E9: 2019-12-31 | F9: 26313 | G9: 26438 | I9: 1 | J9: =G9-F9 -> 125 | L9: =E9-D9 -> 42 | M9: =ROUND(L9/30,0) -> 1
C10: Tarif Consommation (2) | D10: 2020-01-01 | E10: 2020-03-30 | F10: 26438 | G10: 26707 | I10: =TEXT(L10,"m") -> 3 | J10: =G10-F10 -> 269 | L10: =E10-D10 -> 89 | M10: =ROUND(L10/30,0) -> 3
B12: Calcul des Prix | D12: Quantité | E12: Prix Unitaire H.T. | F12: Total H.T | H12: Taux TVA | I12: 7.7 | J12: Montant CHF T.T.C.
B13: Electricité
B14: Tarif énergie | D14: Du | E14: =$C$3 -> 2019-11-19 | F14: AU | G14: =$E$4 -> 2020-03-31
B15: Energie | E15: PRIX DU KW H.T EN CT. | F15: PRIX TOTAL KW H.T | J15: PRIX TTC | L15: TVA
B16: Consommation (1) en kwh | D16: =G9-F9 -> 125 | E16: 0.599 | F16: =E16*D16/10 -> 7.4875 | H16: 7.7 | I16: =F16*H16% -> 0.5765375 | J16: =F16+I16 -> 8.0640375 | L16: =G16*$I$12/100 -> 0
B17: Consommation (2) en kwh | D17: =G10-F10 -> 269 | E17: 0.671 | F17: =E17*D17/10 -> 18.0499 | H17: 7.7 | I17: =F17*H17% -> 1.3898423 | J17: =F17+I17 -> 19.4397423 | L17: =G17*$I$12/100 -> 0
C18: Consommation (1) + (2) | D18: =D16+D17 -> 394 | F18: Nb de jour | G18: Nb de mois | I18: H.T.
B19: Abonnement (1) | D19: =TEXT(G19,"m") -> 1 | E19: 3.6 | F19: 30 | G19: =I9 -> 1 | H19: =H17 -> 7.7 | I19: =E19*G19 -> 3.6 | J19: =I19+L19 -> 3.8772 | L19: =I19*$I$12/100 -> 0.2772
B20: Abonnement (2) | D20: =TEXT(G20,"m") -> 1 | E20: 3.6 | F20: =E20*G20 -> 10.8 | G20: =I10 -> 3 | H20: =I12 -> 7.7 | I20: =E20*G20 -> 10.8 | J20: =I20+L20 -> 11.6316 | L20: =I20*$I$12/100 -> 0.8316
B21: Sous Total Energie (1) + (2) | J21: =SUM(J16:J20) -> 43.0125798 | L21: 0
B22: Acheminement | D22: Du | E22: =$C$3 -> 43788 | F22: AU | G22: =$E$3 -> 43830 | L22: 3374.91
B24: Acheminement | D24: Nb kwh | E24: Prix H.T KW | F24: Prix T.T.C KW | G24: TVA | H24: TAUX TVA | J24: PRIX TTC
B25: Consommation (1) en kwh | D25: =D16 -> 125 | E25: 7.89 | F25: =E25*D25/100 -> 9.8625 | G25: =F25*H25% -> 0.7594125 | H25: 7.7 | J25: =F25+G25 -> 10.6219125 | L25: 0.0584747625
B26: Consommation (2) en kwh | D26: =D17 -> 269 | E26: 8.3 | F26: =E26*D26/100 -> 22.327 | G26: =F26*H26% -> 1.719179 | H26: 7.7 | J26: =F26+G26 -> 24.046179 | L26: 0.132376783
D27: Nb mois | E27: Prix H.T mois en CHF | F27: Togal Prix H.T. en CHF | G27: Montant TVA | H27: TAUX TVA
B28: Abonnement (1) | D28: =G19 -> 1 | E28: 6.2 | F28: =E28*D28 -> 6.2 | G28: =F28*H28% -> 0.4774 | H28: =I12 -> 7.7 | J28: =F28+G28 -> 6.6774
B29: Abonnement (2) | D29: =G20 -> 3 | E29: 6.31 | F29: =E29*D29 -> 18.93 | G29: =F29*H29% -> 1.45761 | H29: =I12 -> 7.7 | J29: 20.38761
B30: Total Acheminement (1) + (2) | D30: =D25+D26 -> 394 | J30: =SUM(J25:J29) -> 61.7331015 | L30: 0
B31: Participation collectivités publiques | D31: Du | E31: =C3 -> 2019-11-19 | F31: AU | G31: =E4 -> 2020-03-31
B32: Taxes légales | D32: Kwh | E32: Cts le Kwh | G32: H.T. | H32: % TVA | I32: COUT TVA | J32: EN CTS
B33: Emolument cantonal | D33: =D25 -> 125 | E33: 0.02 | G33: =E33*D33 -> 2.5 | H33: =$I$12 -> 7.7 | I33: =G33*H33% -> 0.1925 | J33: =G33+I33 -> 2.6925 | L33: =G34*H33% -> 0.41426
B34: Emolument cantonal | D34: =D26 -> 269 | E34: 0.02 | G34: =E34*D34 -> 5.38 | H34: =I12 -> 7.7 | I34: =G34*H34% -> 0.41426 | J34: =G34+I34 -> 5.79426 | L34: =G34*H34% -> 0.41426
B35: Taxes cantonale efficacité énergétique | D35: =D25 -> 125 | E35: 0.18 | G35: =E35*D35 -> 22.5 | H35: 0 | I35: 0 | J35: 22.5 | L35: 0
B36: Taxes cantonale efficacité énergétique | D36: =D26 -> 269 | E36: 0.18 | G36: 48.42 | H36: 0 | I36: 0 | J36: 48.42
B37: Nyon Emolument sur l'usage du sol | D37: =D25 -> 125 | E37: 0.7 | G37: 87.5 | H37: =$I$12 -> 7.7 | I37: 6.7375 | J37: 94.2375 | L37: =G37*H37/100 -> 6.7375
B38: Nyon Emolument sur l'usage du sol | D38: =D26 -> 269 | E38: 0.7 | G38: 188.3 | H38: 7.7 | I38: 14.4991 | J38: 202.7991
B39: Nyon Taxes sur l'éclairage public | D39: =D25 -> 125 | E39: 0.8 | G39: 100 | H39: 0 | I39: 0 | J39: 100 | L39: 0
B40: Nyon Taxes sur l'éclairage public | D40: =D26 -> 269 | E40: 0.8 | G40: 215.2 | H40: 0 | I40: 0 | J40: 215.2
B41: Nyon Taxes pour l'énergie renouvlable | D41: =D25 -> 125 | E41: 0.5 | G41: 62.5 | H41: 0 | I41: 0 | J41: 62.5 | L41: 0
B42: Nyon Taxes pour l'énergie renouvlable | D42: =D26 -> 269 | E42: 0.5 | G42: 134.5 | H42: 0 | I42: 0 | J42: 134.5
B43: Nyon Taxes pour le développement durable | D43: =D25 -> 125 | E43: 0.2 | G43: =E43*D43 -> 25 | H43: 0 | I43: 0 | J43: 25 | L43: 0
B44: Nyon Taxes pour le développement durable | D44: =D26 -> 269 | E44: 0.2 | G44: =E44*D44 -> 53.8 | H44: 0 | I44: 0 | J44: 53.8
B45: Taxe Fédérale pour supplément coût transport | D45: =D25 -> 125 | E45: 2.3 | G45: =E45*D45 -> 287.5 | H45: 0 | I45: =G45*H45% -> 0 | J45: 287.5 | L45: 0
B46: Taxe Fédérale pour supplément coût transport | D46: =D26 -> 269 | E46: 2.3 | G46: 618.7 | H46: 0 | I46: 0 | J46: 618.7
H48: Total TAXES | J48: =J49+J50 -> 18.1114336
B49: Sous Total des Taxes (1) | J49: =(J33+J35+J37+J39+J43+J45)/(100) -> 5.3193
B50: Sous Total des Taxes (2) | J50: =(J34+J36+J38+J40+J42+J44+J46)/100 -> 12.7921336 | L50: =J49+J50 -> 18.1114336
B51: =IF(J51>0,"Acompte","") -> Acompte | J51: 10
B52: =IF(J52>0,"Acompte","") -> Acompte | J52: 20 | L52: =J51+J52 -> 30
B53: MONTANT FINAL ELECTRICITE | E53: Sous déduction accomptes | G53: =L52 -> 30 | I53: CHF | J53: =J21+J30+J48-(G53) -> 92.8571149
